{"text_format":"1","workbook":"xlsx","n_sheets":3,"sheets":["Lista de estoque do armazém","Lista de seleção de estoque","Pesquisar compartimento"],"not_rendered":{"charts":0,"images":0,"macros":1,"external_links":0,"defined_names":8,"comments":0,"pivot_tables":0},"unopened":[],"bounds":{"document_bytes":16777216,"sheet_cells":100000,"rows_first":2000,"rows_last":500,"rows_between":2000,"halvings":0,"cell_chars":16384,"cell_head_chars":4096},"cells_cut":0,"cells_raw":0,"read":"whole","date_system":"1900"}

{"sheet":"Lista de estoque do armazém","index":0,"n_rows":15,"n_cols":11,"rows_kept":15,"cut":false,"hidden":false,"merged":[]}
[null,"LISTA DE ESTOQUE DO ARMAZÉM"]
[null,"VALOR TOTAL DO ESTOQUE:","ITENS DO ESTOQUE:","CONTAGEM DE COMPARTIMENTO:","LISTA DE SELEÇÃO DE ESTOQUE","PESQUISAR COMPARTIMENTO"]
[null,{"$f":"SUM(ListaEstoque[VALOR DE ESTOQUE])","v":4649},{"$f":"COUNTA(ListaEstoque[DESCRIÇÃO])","v":11},{"$f":"SUMPRODUCT((1/COUNTIF(ListaEstoque[N.º DO COMPARTIMENTO],ListaEstoque[N.º DO COMPARTIMENTO]&\"\")))","v":6}]
[null,"SKU","DESCRIÇÃO","N.º DO COMPARTIMENTO","LOCAL","UNIDADE","QUANT","QUANT NOVA ENCOMENDA","CUSTO","VALOR DE ESTOQUE","NOVA ENCOMENDA"]
[null,"SP7875","Item 1","T345",{"$f":"IFERROR(VLOOKUP(ListaEstoque[[#This Row],[N.º DO COMPARTIMENTO]],PesquisarCompartimento[],3,FALSE),\"\")","v":"Linha 2, compartimento 1"},"Cada",20,10,30,{"$f":"ListaEstoque[[#This Row],[QUANT]]*ListaEstoque[[#This Row],[CUSTO]]","v":600},{"$f":"IFERROR(IF(ListaEstoque[[#This Row],[QUANT]]<=ListaEstoque[[#This Row],[QUANT NOVA ENCOMENDA]],1,0),0)","v":0}]
[null,"TR87680","Item 2","T345",{"$f":"IFERROR(VLOOKUP(ListaEstoque[[#This Row],[N.º DO COMPARTIMENTO]],PesquisarCompartimento[],3,FALSE),\"\")","v":"Linha 2, compartimento 1"},"Cada",30,15,40,{"$f":"ListaEstoque[[#This Row],[QUANT]]*ListaEstoque[[#This Row],[CUSTO]]","v":1200},{"$f":"IFERROR(IF(ListaEstoque[[#This Row],[QUANT]]<=ListaEstoque[[#This Row],[QUANT NOVA ENCOMENDA]],1,0),0)","v":0}]
[null,"MK676554","Item 3","T5789",{"$f":"IFERROR(VLOOKUP(ListaEstoque[[#This Row],[N.º DO COMPARTIMENTO]],PesquisarCompartimento[],3,FALSE),\"\")","v":"Linha 1, compartimento 1"},"Cada",10,5,5,{"$f":"ListaEstoque[[#This Row],[QUANT]]*ListaEstoque[[#This Row],[CUSTO]]","v":50},{"$f":"IFERROR(IF(ListaEstoque[[#This Row],[QUANT]]<=ListaEstoque[[#This Row],[QUANT NOVA ENCOMENDA]],1,0),0)","v":0}]
[null,"YE98767","Item 4","T9876",{"$f":"IFERROR(VLOOKUP(ListaEstoque[[#This Row],[N.º DO COMPARTIMENTO]],PesquisarCompartimento[],3,FALSE),\"\")","v":"Linha 3, compartimento 2"},"Caixa (10 unid.)",40,10,15,{"$f":"ListaEstoque[[#This Row],[QUANT]]*ListaEstoque[[#This Row],[CUSTO]]","v":600},{"$f":"IFERROR(IF(ListaEstoque[[#This Row],[QUANT]]<=ListaEstoque[[#This Row],[QUANT NOVA ENCOMENDA]],1,0),0)","v":0}]
[null,"XR23423","Item 5","T098",{"$f":"IFERROR(VLOOKUP(ListaEstoque[[#This Row],[N.º DO COMPARTIMENTO]],PesquisarCompartimento[],3,FALSE),\"\")","v":"Linha 3, compartimento 1"},"Cada",12,10,26,{"$f":"ListaEstoque[[#This Row],[QUANT]]*ListaEstoque[[#This Row],[CUSTO]]","v":312},{"$f":"IFERROR(IF(ListaEstoque[[#This Row],[QUANT]]<=ListaEstoque[[#This Row],[QUANT NOVA ENCOMENDA]],1,0),0)","v":0}]
[null,"PW98762","Item 6","T345",{"$f":"IFERROR(VLOOKUP(ListaEstoque[[#This Row],[N.º DO COMPARTIMENTO]],PesquisarCompartimento[],3,FALSE),\"\")","v":"Linha 2, compartimento 1"},"Cada",7,10,50,{"$f":"ListaEstoque[[#This Row],[QUANT]]*ListaEstoque[[#This Row],[CUSTO]]","v":350},{"$f":"IFERROR(IF(ListaEstoque[[#This Row],[QUANT]]<=ListaEstoque[[#This Row],[QUANT NOVA ENCOMENDA]],1,0),0)","v":1}]
[null,"BM87684","Item 7","T349",{"$f":"IFERROR(VLOOKUP(ListaEstoque[[#This Row],[N.º DO COMPARTIMENTO]],PesquisarCompartimento[],3,FALSE),\"\")","v":"Linha 1, compartimento 2"},"Cada",10,5,10,{"$f":"ListaEstoque[[#This Row],[QUANT]]*ListaEstoque[[#This Row],[CUSTO]]","v":100},{"$f":"IFERROR(IF(ListaEstoque[[#This Row],[QUANT]]<=ListaEstoque[[#This Row],[QUANT NOVA ENCOMENDA]],1,0),0)","v":0}]
[null,"BH67655","Item 8","T5789",{"$f":"IFERROR(VLOOKUP(ListaEstoque[[#This Row],[N.º DO COMPARTIMENTO]],PesquisarCompartimento[],3,FALSE),\"\")","v":"Linha 1, compartimento 1"},"Cada",19,10,3,{"$f":"ListaEstoque[[#This Row],[QUANT]]*ListaEstoque[[#This Row],[CUSTO]]","v":57},{"$f":"IFERROR(IF(ListaEstoque[[#This Row],[QUANT]]<=ListaEstoque[[#This Row],[QUANT NOVA ENCOMENDA]],1,0),0)","v":0}]
[null,"WT98768","Item 9","T9875",{"$f":"IFERROR(VLOOKUP(ListaEstoque[[#This Row],[N.º DO COMPARTIMENTO]],PesquisarCompartimento[],3,FALSE),\"\")","v":"Linha 2, compartimento 2"},"Pacote (5 unid.)",20,30,14,{"$f":"ListaEstoque[[#This Row],[QUANT]]*ListaEstoque[[#This Row],[CUSTO]]","v":280},{"$f":"IFERROR(IF(ListaEstoque[[#This Row],[QUANT]]<=ListaEstoque[[#This Row],[QUANT NOVA ENCOMENDA]],1,0),0)","v":1}]
[null,"TS3456","Item 10","T349",{"$f":"IFERROR(VLOOKUP(ListaEstoque[[#This Row],[N.º DO COMPARTIMENTO]],PesquisarCompartimento[],3,FALSE),\"\")","v":"Linha 1, compartimento 2"},"Cada",15,8,60,{"$f":"ListaEstoque[[#This Row],[QUANT]]*ListaEstoque[[#This Row],[CUSTO]]","v":900},{"$f":"IFERROR(IF(ListaEstoque[[#This Row],[QUANT]]<=ListaEstoque[[#This Row],[QUANT NOVA ENCOMENDA]],1,0),0)","v":0}]
[null,"WDG123","Item 11","T349",{"$f":"IFERROR(VLOOKUP(ListaEstoque[[#This Row],[N.º DO COMPARTIMENTO]],PesquisarCompartimento[],3,FALSE),\"\")","v":"Linha 1, compartimento 2"},"Cada",25,15,8,{"$f":"ListaEstoque[[#This Row],[QUANT]]*ListaEstoque[[#This Row],[CUSTO]]","v":200},{"$f":"IFERROR(IF(ListaEstoque[[#This Row],[QUANT]]<=ListaEstoque[[#This Row],[QUANT NOVA ENCOMENDA]],1,0),0)","v":0}]

{"sheet":"Lista de seleção de estoque","index":1,"n_rows":9,"n_cols":9,"rows_kept":9,"cut":false,"hidden":false,"merged":[]}
[null,"LISTA DE SELEÇÃO DE ESTOQUE"]
[null,"LIMPAR  LISTA  DE SELEÇÃO","LISTA DE  ESTOQUE"]
[]
[null,"N.º PEDIDO","SKU","QUANT SELECIONADA","QUANT DISPONÍVEL","DESCRIÇÃO DO ITEM","UNIDADE","N.º DO COMPARTIMENTO","LOCAL"]
[null,"TP001-1","SP7875",3,{"$f":"IFERROR(VLOOKUP(ListaSeleçãoEstoque[SKU],ListaEstoque[],6,FALSE),\"\")","v":20},{"$f":"IFERROR(VLOOKUP(ListaSeleçãoEstoque[SKU],ListaEstoque[],2,FALSE),\"\")","v":"Item 1"},{"$f":"IFERROR(VLOOKUP(ListaSeleçãoEstoque[SKU],ListaEstoque[],5,FALSE),\"\")","v":"Cada"},{"$f":"IFERROR(VLOOKUP(ListaSeleçãoEstoque[SKU],ListaEstoque[],3,FALSE),\"\")","v":"T345"},{"$f":"IFERROR(VLOOKUP(ListaSeleçãoEstoque[SKU],ListaEstoque[],4,FALSE),\"\")","v":"Linha 2, compartimento 1"}]
[null,"TP001-1","YE98767",1,{"$f":"IFERROR(VLOOKUP(ListaSeleçãoEstoque[SKU],ListaEstoque[],6,FALSE),\"\")","v":40},{"$f":"IFERROR(VLOOKUP(ListaSeleçãoEstoque[SKU],ListaEstoque[],2,FALSE),\"\")","v":"Item 4"},{"$f":"IFERROR(VLOOKUP(ListaSeleçãoEstoque[SKU],ListaEstoque[],5,FALSE),\"\")","v":"Caixa (10 unid.)"},{"$f":"IFERROR(VLOOKUP(ListaSeleçãoEstoque[SKU],ListaEstoque[],3,FALSE),\"\")","v":"T9876"},{"$f":"IFERROR(VLOOKUP(ListaSeleçãoEstoque[SKU],ListaEstoque[],4,FALSE),\"\")","v":"Linha 3, compartimento 2"}]
[null,"TP001-1","BM87684",2,{"$f":"IFERROR(VLOOKUP(ListaSeleçãoEstoque[SKU],ListaEstoque[],6,FALSE),\"\")","v":10},{"$f":"IFERROR(VLOOKUP(ListaSeleçãoEstoque[SKU],ListaEstoque[],2,FALSE),\"\")","v":"Item 7"},{"$f":"IFERROR(VLOOKUP(ListaSeleçãoEstoque[SKU],ListaEstoque[],5,FALSE),\"\")","v":"Cada"},{"$f":"IFERROR(VLOOKUP(ListaSeleçãoEstoque[SKU],ListaEstoque[],3,FALSE),\"\")","v":"T349"},{"$f":"IFERROR(VLOOKUP(ListaSeleçãoEstoque[SKU],ListaEstoque[],4,FALSE),\"\")","v":"Linha 1, compartimento 2"}]
[null,"TP001-1","TS3456",6,{"$f":"IFERROR(VLOOKUP(ListaSeleçãoEstoque[SKU],ListaEstoque[],6,FALSE),\"\")","v":15},{"$f":"IFERROR(VLOOKUP(ListaSeleçãoEstoque[SKU],ListaEstoque[],2,FALSE),\"\")","v":"Item 10"},{"$f":"IFERROR(VLOOKUP(ListaSeleçãoEstoque[SKU],ListaEstoque[],5,FALSE),\"\")","v":"Cada"},{"$f":"IFERROR(VLOOKUP(ListaSeleçãoEstoque[SKU],ListaEstoque[],3,FALSE),\"\")","v":"T349"},{"$f":"IFERROR(VLOOKUP(ListaSeleçãoEstoque[SKU],ListaEstoque[],4,FALSE),\"\")","v":"Linha 1, compartimento 2"}]
[null,"TP001-1","MK676554",3,{"$f":"IFERROR(VLOOKUP(ListaSeleçãoEstoque[SKU],ListaEstoque[],6,FALSE),\"\")","v":10},{"$f":"IFERROR(VLOOKUP(ListaSeleçãoEstoque[SKU],ListaEstoque[],2,FALSE),\"\")","v":"Item 3"},{"$f":"IFERROR(VLOOKUP(ListaSeleçãoEstoque[SKU],ListaEstoque[],5,FALSE),\"\")","v":"Cada"},{"$f":"IFERROR(VLOOKUP(ListaSeleçãoEstoque[SKU],ListaEstoque[],3,FALSE),\"\")","v":"T5789"},{"$f":"IFERROR(VLOOKUP(ListaSeleçãoEstoque[SKU],ListaEstoque[],4,FALSE),\"\")","v":"Linha 1, compartimento 1"}]

{"sheet":"Pesquisar compartimento","index":2,"n_rows":11,"n_cols":7,"rows_kept":11,"cut":false,"hidden":false,"merged":[]}
[null,"PESQUISAR COMPARTIMENTO"]
[null,"LISTA DE ESTOQUE"]
[]
[null,"N.º DO COMPARTIMENTO","DESCRIÇÃO","LOCAL","LARGURA","ALTURA","COMPRIMENTO"]
[null,"T345","Compartimento grande","Linha 2, compartimento 1",50,10,10]
[null,"T5789","Compartimento pequeno","Linha 1, compartimento 1",25,5,5]
[null,"T9876","Compartimento grande","Linha 3, compartimento 2",50,10,10]
[null,"T098","Compartimento médio","Linha 3, compartimento 1",30,7,10]
[null,"T349","Compartimento pequeno","Linha 1, compartimento 2",25,5,5]
[null,"T5789","Compartimento grande","Linha 4, compartimento 5",50,10,10]
[null,"T9875","Compartimento grande","Linha 2, compartimento 2",50,10,10]